[Event "EYCC 2017"]
[Site "Mamaia"]
[Date "2017.09.06"]
[Round "2"]
[White "Voloshchuk, Iliya"]
[Black "Schitco, Ivan"]
[Result "0-1"]
[ECO "A45"]
[WhiteElo "2156"]
[BlackElo "2325"]
[Annotator "NA"]
[PlyCount "74"]
[EventDate "2017.??.??"]
[EventType "swiss"]
[EventCountry "ROU"]
[SourceTitle "playchess.com"]
[Source "ChessBase"]
[SourceQuality "1"]
[TimeControl "40/5400+30:1800+30"]

1. d4 Nf6 {[%emt 0:00:16]} 2. Bf4 {[%emt 0:00:00]} d5 {[%emt 0:00:15]} 3. e3 {[%emt 0:00:00]} c5 {[%emt 0:00:10]} 4. dxc5 {[%emt 0:00:00]} Nc6 {[%emt 0:00:52]} 5. Bb5 {[%emt 0:00:00]} e6 {[%emt 0:01:30]} 6. b4 {[%emt 0:00:07]} a5 {[%emt 0:01:43]} 7. c3 {[%emt 0:00:00]} Bd7 {[%emt 0:01:13]} 8. Qb3 {[%emt 0:00:00]} Ne4 {[%emt 0:11:12]} 9. f3 {[%emt 0:00:18]} g5 {[%emt 0:02:16]} 10. Bxc6 {[%emt 0:12:37]} bxc6 {[%emt 0:10:58]} 11. Be5 {[%emt 0:02:20]} Nf6 {[%emt 0:11:29]} 12. Ne2 {[%emt 0:02:56]} Bg7 {[%emt 0:02:20]} 13. O-O {[%emt 0:03:04]} O-O {[%emt 0:03:10]} 14. a4 {[%emt 0:12:05]} Ne8 {[%emt 0:03:42]} 15. Bxg7 {[%emt 0:01:24]} Nxg7 {[%emt 0:00:35]} 16. e4 {[%emt 0:05:15]} Qc7 {[%emt 0:06:19]} 17. Nd2 {[%emt 0:03:48]} Rab8 {[%emt 0:03:09]} 18. Rab1 {[%emt 0:04:38]} Rb7 {[%emt 0:02:31]} 19. Qa3 {[%emt 0:05:15]} Rfb8 {[%emt 0:04:41]} 20. Rfe1 {[%emt 0:05:00]} h6 {[%emt 0:03:38]} 21. Rb3 {[%emt 0:06:48]} Nh5 {[%emt 0:04:32]} 22. Qb2 {[%emt 0:04:42]} e5 {[%emt 0:03:36]} 23. exd5 {[%emt 0:04:42]} cxd5 {[%emt 0:00:18]} 24. Ra1 {[%emt 0:10:57]} axb4 {[%emt 0:03:02]} 25. cxb4 {[%emt 0:00:09]} Rxb4 {[%emt 0:01:27]} 26. Rxb4 {[%emt 0:00:18]} Qxc5+ {[%emt 0:00:06]} 27. Qd4 {[%emt 0:00:13]} exd4 {[%emt 0:01:55]} 28. Rxb8+ {[%emt 0:00:06]} Kg7 {[%emt 0:00:07]} 29. Nc1 {[%emt 0:03:47]} d3+ {[%emt 0:01:21]} 30. Kh1 {[%emt 0:00:12]} Qf2 {[%emt 0:01:07]} 31. Ncb3 {[%emt 0:00:37]} Nf4 {[%emt 0:00:36]} 32. Rg1 {[%emt 0:00:07]} Bxa4 {[%emt 0:00:49]} 33. g3 {[%emt 0:00:46]} Bxb3 {[%emt 0:01:18]} 34. gxf4 {[%emt 0:01:02]} Qxd2 {[%emt 0:00:20]} 35. Rxb3 {[%emt 0:00:45]} Qe2 {[%emt 0:00:26]} 36. Rbb1 {[%emt 0:00:50]} Qxf3+ {[%emt 0:00:17]} 37. Rg2 {[%emt 0:00:02]} d2 {[%emt 0:00:22]} 0-1

[Event "EYCC 2017"]
[Site "Mamaia"]
[Date "2017.09.06"]
[Round "2"]
[White "Juksta, Karolis"]
[Black "Kucuksari, Kaan"]
[Result "0-1"]
[ECO "A80"]
[WhiteElo "2147"]
[BlackElo "2319"]
[Annotator "NA"]
[PlyCount "60"]
[EventDate "2017.??.??"]
[EventType "swiss"]
[EventCountry "ROU"]
[SourceTitle "playchess.com"]
[Source "ChessBase"]
[SourceQuality "1"]
[TimeControl "40/5400+30:1800+30"]

1. d4 {[%emt 0:00:00]} f5 {[%emt 0:00:06]} 2. Nc3 {[%emt 0:00:03]} d5 {[%emt 0:01:39]} 3. Bf4 {[%emt 0:00:18]} Nf6 {[%emt 0:01:15]} 4. Nb5 {[%emt 0:00:21]} Na6 {[%emt 0:00:52]} 5. c4 {[%emt 0:00:02]} dxc4 {[%emt 0:12:11]} 6. a4 $11 {[%emt 0:10:39]} Nd5 {[%emt 0:09:48]} 7. Bd2 {[%emt 0:13:11]} e6 {[%emt 0:21:24]} 8. e3 {[%emt 0:01:14]} c6 {[%emt 0:02:28]} 9. Na3 {[%emt 0:17:46]} Bxa3 {[%emt 0:00:59]} 10. Rxa3 {[%emt 0:00:16]} b5 {[%emt 0:02:28]} 11. axb5 {[%emt 0:18:17]} cxb5 {[%emt 0:00:11]} 12. Qa1 {[%emt 0:01:31]} Nab4 {[%emt 0:11:54]} 13. Bxb4 {[%emt 0:03:53]} Nxb4 {[%emt 0:00:09]} 14. Rc3 {[%emt 0:00:25]} Bb7 {[%emt 0:05:32]} 15. Nh3 {[%emt 0:05:19]} Be4 {[%emt 0:04:15]} 16. Qd1 {[%emt 0:03:49]} Qa5 {[%emt 0:06:48]} 17. f3 {[%emt 0:05:20]} Bd3 {[%emt 0:10:11]} 18. Kf2 {[%emt 0:08:21]} e5 {[%emt 0:03:00]} 19. Bxd3 {[%emt 0:04:15]} Nxd3+ {[%emt 0:00:12]} 20. Rxd3 {[%emt 0:00:04]} cxd3 {[%emt 0:00:02]} 21. Qxd3 {[%emt 0:00:25]} O-O {[%emt 0:00:33]} 22. Rd1 {[%emt 0:02:19]} exd4 {[%emt 0:01:16]} 23. exd4 {[%emt 0:00:02]} Qb4 {[%emt 0:00:00]} 24. Rd2 {[%emt 0:01:36]} Rac8 {[%emt 0:03:20]} 25. Nf4 {[%emt 0:01:49]} Qc4 {[%emt 0:01:18]} 26. Qb1 {[%emt 0:00:22]} Rcd8 {[%emt 0:00:56]} 27. Qd1 {[%emt 0:00:41]} Rf7 {[%emt 0:00:27]} 28. g3 {[%emt 0:00:50]} Rfd7 {[%emt 0:00:22]} 29. b3 {[%emt 0:00:20]} Rxd4 {[%emt 0:00:36]} 30. Rxd4 {[%emt 0:00:59]} Qxd4+ {[%emt 0:00:09]} 0-1

[Event "EYCC 2017"]
[Site "Mamaia"]
[Date "2017.09.06"]
[Round "2"]
[White "Remizov, Yaroslav"]
[Black "Stefansson, Vignir Vatnar"]
[Result "1/2-1/2"]
[ECO "C18"]
[WhiteElo "2146"]
[BlackElo "2312"]
[Annotator "NA"]
[PlyCount "107"]
[EventDate "2017.??.??"]
[EventType "swiss"]
[EventCountry "ROU"]
[SourceTitle "playchess.com"]
[Source "ChessBase"]
[SourceQuality "1"]
[TimeControl "40/5400+30:1800+30"]

1. e4 {[%emt 0:00:00]} e6 {[%emt 0:00:07]} 2. d4 {[%emt 0:00:00]} d5 {[%emt 0:00:07]} 3. Nc3 {[%emt 0:00:00]} Bb4 {[%emt 0:00:12]} 4. e5 {[%emt 0:00:00]} c5 {[%emt 0:00:13]} 5. a3 {[%emt 0:00:00]} Bxc3+ {[%emt 0:00:07]} 6. bxc3 {[%emt 0:00:00]} Qa5 {[%emt 0:00:11]} 7. Bd2 {[%emt 0:00:20]} Qa4 {[%emt 0:00:02]} 8. Qg4 {[%emt 0:04:41]} Kf8 {[%emt 0:00:03]} 9. Kd1 {[%emt 0:01:15]} Ne7 {[%emt 0:05:35]} 10. Nf3 {[%emt 0:01:00]} h6 {[%emt 0:04:51]} 11. h4 {[%emt 0:02:13]} b6 {[%emt 0:02:17]} 12. h5 {[%emt 0:03:16]} Ba6 {[%emt 0:02:24]} 13. Bxa6 {[%emt 0:00:15]} Nxa6 {[%emt 0:01:19]} 14. Rh3 {[%emt 0:00:59]} Rc8 {[%emt 0:07:34]} 15. Nh4 {[%emt 0:01:00]} Rg8 {[%emt 0:08:04]} 16. Rf3 {[%emt 0:01:23]} Ke8 {[%emt 0:00:10]} 17. Qf4 {[%emt 0:00:29]} Kd7 {[%emt 0:01:25]} 18. dxc5 {[%emt 0:02:20]} Nxc5 {[%emt 0:11:41]} 19. Qxa4+ {[%emt 0:00:06]} Nxa4 {[%emt 0:00:11]} 20. Rxf7 {[%emt 0:00:03]} Ke8 {[%emt 0:00:21]} 21. Rf4 {[%emt 0:03:56]} Nb2+ {[%emt 0:06:35]} 22. Ke2 {[%emt 0:02:38]} Nc4 {[%emt 0:00:03]} 23. a4 {[%emt 0:09:29]} Kd7 {[%emt 0:06:05]} 24. Nf3 {[%emt 0:02:16]} Rcf8 {[%emt 0:00:37]} 25. Be3 {[%emt 0:09:32]} Nc6 {[%emt 0:01:38]} 26. Rxf8 {[%emt 0:00:14]} Rxf8 {[%emt 0:00:09]} 27. Bd4 {[%emt 0:00:03]} Rf5 {[%emt 0:00:29]} 28. g4 {[%emt 0:04:25]} Rf4 {[%emt 0:00:12]} 29. Rg1 {[%emt 0:01:35]} Re4+ {[%emt 0:00:38]} 30. Kd1 {[%emt 0:07:07]} Nb2+ {[%emt 0:12:10]} 31. Kd2 {[%emt 0:03:47]} Nc4+ {[%emt 0:00:10]} 32. Kd1 {[%emt 0:00:54]} Nb2+ {[%emt 0:02:13]} 33. Kc1 {[%emt 0:02:07]} Nxa4 {[%emt 0:00:11]} 34. g5 {[%emt 0:00:43]} Nxd4 {[%emt 0:01:32]} 35. cxd4 {[%emt 0:03:18]} Rf4 {[%emt 0:00:10]} 36. gxh6 {[%emt 0:04:52]} gxh6 {[%emt 0:01:45]} 37. Rg7+ {[%emt 0:04:20]} Kc6 {[%emt 0:00:13]} 38. Ne1 {[%emt 0:01:10]} Rxd4 {[%emt 0:02:01]} 39. Rg6 {[%emt 0:01:07]} Nc5 {[%emt 0:02:53]} 40. Rxh6 {[%emt 0:00:00]} Rf4 {[%emt 0:00:11]} 41. Nd3 Nxd3+ {[%emt 0:01:05]} 42. cxd3 {[%emt 0:14:23]} Kd7 {[%emt 0:03:48]} 43. Rf6 {[%emt 0:02:38]} Rh4 {[%emt 0:00:08]} 44. h6 {[%emt 0:00:35]} Ke7 {[%emt 0:01:40]} 45. Kd2 {[%emt 0:05:29]} a5 {[%emt 0:00:30]} 46. Kc3 {[%emt 0:00:30]} b5 {[%emt 0:00:57]} 47. f4 {[%emt 0:00:19]} b4+ {[%emt 0:01:40]} 48. Kb3 {[%emt 0:03:03]} Rh3 {[%emt 0:00:10]} 49. f5 {[%emt 0:00:10]} exf5 {[%emt 0:01:42]} 50. Ka4 {[%emt 0:04:07]} f4 {[%emt 0:05:21]} 51. Kxa5 {[%emt 0:01:47]} b3 {[%emt 0:00:47]} 52. Rxf4 {[%emt 0:00:03]} Ke6 {[%emt 0:02:08]} 53. Rb4 {[%emt 0:08:32]} Rxd3 {[%emt 0:02:32]} 54. Ka4 {[%emt 0:00:10]} 1/2-1/2

[Event "EYCC 2017"]
[Site "Mamaia"]
[Date "2017.09.06"]
[Round "2"]
[White "Popov, Konstantin"]
[Black "Laux, Dominik"]
[Result "1/2-1/2"]
[ECO "B06"]
[WhiteElo "2141"]
[BlackElo "1874"]
[Annotator "NA"]
[PlyCount "85"]
[EventDate "2017.??.??"]
[EventType "swiss"]
[EventCountry "ROU"]
[SourceTitle "playchess.com"]
[Source "ChessBase"]
[SourceQuality "1"]
[TimeControl "40/5400+30:1800+30"]

1. e4 {[%emt 0:00:00]} g6 {[%emt 0:00:12]} 2. d4 {[%emt 0:00:41]} Bg7 {[%emt 0:00:09]} 3. Nc3 {[%emt 0:00:50]} c6 {[%emt 0:00:13]} 4. g3 {[%emt 0:01:20]} d5 {[%emt 0:01:40]} 5. exd5 {[%emt 0:19:18]} cxd5 {[%emt 0:00:05]} 6. Bg2 {[%emt 0:00:10]} e6 {[%emt 0:00:28]} 7. Nce2 {[%emt 0:00:58]} Nc6 {[%emt 0:01:59]} 8. c3 {[%emt 0:00:19]} Nge7 {[%emt 0:01:43]} 9. Nf3 {[%emt 0:01:20]} b6 {[%emt 0:01:04]} 10. O-O {[%emt 0:01:36]} O-O {[%emt 0:03:03]} 11. Bf4 {[%emt 0:04:37]} f6 {[%emt 0:06:49]} 12. Qd2 {[%emt 0:08:27]} Ba6 {[%emt 0:09:22]} 13. Rfe1 {[%emt 0:08:58]} e5 {[%emt 0:07:38]} 14. dxe5 {[%emt 0:03:35]} fxe5 {[%emt 0:00:12]} 15. Be3 {[%emt 0:14:40]} Qd6 {[%emt 0:06:18]} 16. Ng5 {[%emt 0:06:24]} Rad8 {[%emt 0:01:59]} 17. f4 {[%emt 0:01:54]} e4 {[%emt 0:03:11]} 18. Nd4 {[%emt 0:09:21]} Nxd4 {[%emt 0:01:28]} 19. Bxd4 {[%emt 0:01:30]} Bxd4+ {[%emt 0:01:35]} 20. Qxd4 {[%emt 0:01:35]} Nf5 {[%emt 0:01:14]} 21. Qd1 {[%emt 0:01:55]} Bd3 {[%emt 0:07:52]} 22. Ne6 {[%emt 0:05:45]} Qxe6 {[%emt 0:01:39]} 23. Qxd3 {[%emt 0:00:02]} Qc6 {[%emt 0:01:11]} 24. Qd2 {[%emt 0:00:40]} Rd6 {[%emt 0:01:34]} 25. Rad1 {[%emt 0:02:35]} Rfd8 {[%emt 0:01:35]} 26. Qe2 {[%emt 0:00:43]} b5 {[%emt 0:04:16]} 27. Qf2 {[%emt 0:02:19]} a6 {[%emt 0:04:04]} 28. g4 {[%emt 0:00:28]} Ng7 {[%emt 0:01:27]} 29. h3 {[%emt 0:00:58]} Rf8 {[%emt 0:01:30]} 30. Qe3 {[%emt 0:00:26]} Ne6 {[%emt 0:03:18]} 31. Rf1 {[%emt 0:00:54]} Nc5 {[%emt 0:02:41]} 32. Rd2 {[%emt 0:01:00]} Nd3 {[%emt 0:00:48]} 33. Kh1 {[%emt 0:00:28]} Rdf6 {[%emt 0:01:17]} 34. Rxd3 {[%emt 0:00:36]} exd3 {[%emt 0:00:27]} 35. Qxd3 {[%emt 0:00:01]} Rd6 {[%emt 0:01:11]} 36. f5 {[%emt 0:00:30]} Qc4 {[%emt 0:01:05]} 37. Qg3 {[%emt 0:00:17]} Rdd8 {[%emt 0:03:43]} 38. Qe5 {[%emt 0:01:06]} d4 {[%emt 0:01:10]} 39. cxd4 {[%emt 0:00:33]} Qxd4 {[%emt 0:00:45]} 40. Qe6+ {[%emt 0:00:00]} Kh8 {[%emt 0:00:14]} 41. Qxa6 {[%emt 0:18:35]} gxf5 {[%emt 0:03:30]} 42. Qxb5 {[%emt 0:05:58]} fxg4 {[%emt 0:00:49]} 43. Rxf8+ {[%emt 0:02:39]} 1/2-1/2

[Event "EYCC 2017"]
[Site "Mamaia"]
[Date "2017.09.06"]
[Round "2"]
[White "Shafigullina, Zarina"]
[Black "Coman, Emilia-Florentina"]
[Result "1-0"]
[ECO "A40"]
[WhiteElo "2130"]
[BlackElo "1821"]
[Annotator "NA"]
[PlyCount "47"]
[EventDate "2017.??.??"]
[EventType "swiss"]
[EventCountry "ROU"]
[SourceTitle "playchess.com"]
[Source "ChessBase"]
[SourceQuality "1"]
[TimeControl "40/5400+30:1800+30"]

1. d4 {[%emt 0:00:00]} e6 {[%emt 0:00:16]} 2. Nf3 {[%emt 0:00:00]} Nf6 {[%emt 0:00:12]} 3. g3 {[%emt 0:00:07]} b5 {[%emt 0:00:36]} 4. Qd3 {[%emt 0:04:42]} Ba6 {[%emt 0:06:54]} 5. c3 {[%emt 0:08:08]} b4 {[%emt 0:13:12]} 6. c4 {[%emt 0:01:49]} d5 {[%emt 0:01:31]} 7. b3 {[%emt 0:01:25]} c5 {[%emt 0:05:07]} 8. Bg2 {[%emt 0:04:57]} Nbd7 {[%emt 0:04:13]} 9. a3 {[%emt 0:14:34]} Qb6 {[%emt 0:08:41]} 10. axb4 {[%emt 0:01:29]} cxb4 {[%emt 0:11:15]} 11. Nbd2 {[%emt 0:01:40]} Rc8 {[%emt 0:02:00]} 12. O-O {[%emt 0:02:30]} Be7 {[%emt 0:02:17]} 13. Re1 {[%emt 0:03:12]} O-O {[%emt 0:17:58]} 14. c5 {[%emt 0:04:16]} Bxd3 {[%emt 0:01:44]} 15. cxb6 {[%emt 0:00:06]} Bb5 {[%emt 0:00:07]} 16. bxa7 {[%emt 0:03:21]} Ra8 {[%emt 0:01:28]} 17. e4 {[%emt 0:07:09]} dxe4 {[%emt 0:08:49]} 18. Ne5 {[%emt 0:02:41]} Nd5 {[%emt 0:06:46]} 19. Nxd7 {[%emt 0:00:24]} Bxd7 {[%emt 0:00:12]} 20. Bxe4 {[%emt 0:00:06]} Bf6 {[%emt 0:01:40]} 21. Bb2 {[%emt 0:01:15]} Rfc8 {[%emt 0:01:28]} 22. Nc4 {[%emt 0:01:52]} Rc7 {[%emt 0:01:39]} 23. Bxd5 {[%emt 0:00:12]} exd5 {[%emt 0:02:19]} 24. Nb6 {[%emt 0:00:06]} 1-0

[Event "EYCC 2017"]
[Site "Mamaia"]
[Date "2017.09.06"]
[Round "2"]
[White "Dolgun, Can"]
[Black "Biletskiy, Danylo"]
[Result "0-1"]
[ECO "B31"]
[WhiteElo "2128"]
[BlackElo "1866"]
[Annotator "NA"]
[PlyCount "134"]
[EventDate "2017.??.??"]
[EventType "swiss"]
[EventCountry "ROU"]
[SourceTitle "playchess.com"]
[Source "ChessBase"]
[SourceQuality "1"]
[TimeControl "40/5400+30:1800+30"]

1. e4 {[%emt 0:00:00]} c5 {[%emt 0:00:01]} 2. Nf3 {[%emt 0:00:00]} Nc6 {[%emt 0:00:04]} 3. Bb5 {[%emt 0:00:00]} g6 {[%emt 0:00:07]} 4. Bxc6 {[%emt 0:00:02]} bxc6 {[%emt 0:00:30]} 5. O-O {[%emt 0:00:43]} Bg7 {[%emt 0:00:03]} 6. Re1 {[%emt 0:02:12]} Nf6 {[%emt 0:02:31]} 7. c3 {[%emt 0:00:34]} O-O {[%emt 0:00:43]} 8. d4 {[%emt 0:00:35]} cxd4 {[%emt 0:00:06]} 9. cxd4 {[%emt 0:00:09]} d6 {[%emt 0:04:49]} 10. Nc3 {[%emt 0:01:32]} Bg4 {[%emt 0:01:55]} 11. h3 {[%emt 0:05:30]} Bxf3 {[%emt 0:00:08]} 12. Qxf3 {[%emt 0:00:28]} Nd7 {[%emt 0:00:09]} 13. d5 {[%emt 0:07:29]} c5 {[%emt 0:09:09]} 14. Qe2 {[%emt 0:12:32]} Rb8 {[%emt 0:00:24]} 15. Bg5 {[%emt 0:12:22]} h6 {[%emt 0:02:02]} 16. Be3 {[%emt 0:09:33]} Qa5 {[%emt 0:00:49]} 17. Rec1 {[%emt 0:07:16]} Rb4 {[%emt 0:11:38]} 18. Qd2 {[%emt 0:05:07]} Kh7 {[%emt 0:03:20]} 19. Nd1 {[%emt 0:09:43]} Qb6 {[%emt 0:02:18]} 20. Rab1 {[%emt 0:06:45]} Rb8 {[%emt 0:18:11]} 21. f3 {[%emt 0:02:56]} Qa6 {[%emt 0:11:04]} 22. Nc3 {[%emt 0:03:42]} Bxc3 {[%emt 0:03:44]} 23. Qxc3 {[%emt 0:00:22]} Qxa2 {[%emt 0:00:03]} 24. Ra1 {[%emt 0:01:41]} Qxb2 {[%emt 0:00:08]} 25. Rxa7 {[%emt 0:01:07]} Qxc3 {[%emt 0:00:12]} 26. Rxc3 {[%emt 0:00:02]} R4b7 {[%emt 0:00:35]} 27. Rxb7 {[%emt 0:01:15]} Rxb7 {[%emt 0:00:01]} 28. Kf2 {[%emt 0:01:06]} Rb2+ {[%emt 0:00:21]} 29. Kg3 {[%emt 0:00:51]} Nb6 {[%emt 0:03:03]} 30. Bc1 {[%emt 0:03:46]} Rb4 {[%emt 0:00:32]} 31. Ra3 {[%emt 0:00:25]} Nc4 {[%emt 0:00:39]} 32. Rc3 {[%emt 0:00:38]} e6 {[%emt 0:02:04]} 33. dxe6 {[%emt 0:01:19]} fxe6 {[%emt 0:00:02]} 34. Rd3 {[%emt 0:00:28]} Rb1 {[%emt 0:01:04]} 35. Bf4 {[%emt 0:01:28]} e5 {[%emt 0:00:22]} 36. Be3 {[%emt 0:00:01]} Nxe3 {[%emt 0:01:03]} 37. Rxe3 {[%emt 0:00:00]} Kg7 {[%emt 0:01:02]} 38. Rd3 {[%emt 0:01:28]} Rb6 {[%emt 0:00:06]} 39. Kg4 {[%emt 0:01:28]} Kf6 {[%emt 0:00:34]} 40. h4 {[%emt 0:00:00]} h5+ {[%emt 0:00:36]} 41. Kg3 {[%emt 0:02:09]} c4 {[%emt 0:01:40]} 42. Ra3 {[%emt 0:01:33]} Rc6 {[%emt 0:00:32]} 43. Rc3 {[%emt 0:00:59]} Ke6 {[%emt 0:00:07]} 44. Kf2 {[%emt 0:08:14]} d5 {[%emt 0:00:20]} 45. exd5+ {[%emt 0:00:10]} Kxd5 {[%emt 0:00:01]} 46. Ke3 {[%emt 0:00:24]} Rb6 {[%emt 0:00:21]} 47. Rc2 {[%emt 0:00:44]} Rb3+ {[%emt 0:00:20]} 48. Ke2 {[%emt 0:00:11]} Kc5 {[%emt 0:01:20]} 49. Ra2 {[%emt 0:01:17]} Kb4 {[%emt 0:01:07]} 50. g3 {[%emt 0:00:55]} c3 {[%emt 0:00:17]} 51. Ra6 {[%emt 0:01:30]} c2 {[%emt 0:00:46]} 52. Kd2 {[%emt 0:00:17]} Rxf3 {[%emt 0:00:39]} 53. Rxg6 {[%emt 0:04:20]} Rf2+ {[%emt 0:00:08]} 54. Kc1 {[%emt 0:00:05]} Kc3 {[%emt 0:00:23]} 55. Rc6+ {[%emt 0:00:14]} Kd3 {[%emt 0:00:05]} 56. Rd6+ {[%emt 0:00:29]} Ke3 {[%emt 0:00:12]} 57. Rh6 {[%emt 0:02:24]} Rg2 {[%emt 0:01:27]} 58. Re6 {[%emt 0:02:28]} e4 {[%emt 0:00:21]} 59. Re5 {[%emt 0:00:25]} Kf3 {[%emt 0:00:23]} 60. Rxh5 {[%emt 0:01:06]} e3 {[%emt 0:00:10]} 61. Rf5+ {[%emt 0:05:22]} Kxg3 {[%emt 0:01:00]} 62. Rf1 {[%emt 0:01:06]} e2 {[%emt 0:00:56]} 63. Re1 {[%emt 0:00:42]} Kf2 {[%emt 0:00:05]} 64. Kd2 {[%emt 0:00:10]} c1=Q+ {[%emt 0:00:07]} 65. Rxc1 {[%emt 0:00:08]} Rg8 {[%emt 0:00:10]} 66. Kd3 {[%emt 0:01:35]} e1=Q {[%emt 0:00:22]} 67. Rxe1 {[%emt 0:00:02]} Kxe1 {[%emt 0:00:01]} 0-1

[Event "EYCC 2017"]
[Site "Mamaia"]
[Date "2017.09.06"]
[Round "2"]
[White "Aciu, Malina-Andreea"]
[Black "Kostecka, Marika"]
[Result "0-1"]
[ECO "B90"]
[WhiteElo "2058"]
[BlackElo "1811"]
[Annotator "NA"]
[PlyCount "92"]
[EventDate "2017.??.??"]
[EventType "swiss"]
[EventCountry "ROU"]
[SourceTitle "playchess.com"]
[Source "ChessBase"]
[SourceQuality "1"]
[TimeControl "40/5400+30:1800+30"]

1. e4 {[%emt 0:00:00]} c5 {[%emt 0:00:09]} 2. Nf3 {[%emt 0:00:00]} d6 {[%emt 0:00:16]} 3. d4 {[%emt 0:00:00]} cxd4 {[%emt 0:00:17]} 4. Nxd4 {[%emt 0:00:00]} Nf6 {[%emt 0:00:19]} 5. Nc3 {[%emt 0:00:00]} a6 {[%emt 0:00:09]} 6. Qf3 {[%emt 0:00:12]} g6 {[%emt 0:09:51]} 7. h3 {[%emt 0:00:05]} Bg7 {[%emt 0:01:12]} 8. Bg5 {[%emt 0:00:10]} Nbd7 {[%emt 0:01:40]} 9. O-O-O {[%emt 0:02:05]} Qc7 {[%emt 0:00:54]} 10. Qe3 {[%emt 0:14:56]} h6 {[%emt 0:01:48]} 11. Bh4 {[%emt 0:00:42]} b5 {[%emt 0:01:02]} 12. f4 {[%emt 0:06:28]} Bb7 {[%emt 0:03:08]} 13. Bd3 {[%emt 0:08:07]} b4 {[%emt 0:03:38]} 14. Nce2 {[%emt 0:03:11]} Nc5 {[%emt 0:02:58]} 15. Ng3 {[%emt 0:04:08]} Rc8 {[%emt 0:01:59]} 16. Kb1 {[%emt 0:00:36]} Nxd3 {[%emt 0:02:39]} 17. cxd3 {[%emt 0:02:17]} Nd7 {[%emt 0:01:18]} 18. Rc1 {[%emt 0:01:53]} Qb6 {[%emt 0:01:20]} 19. Rxc8+ {[%emt 0:11:34]} Bxc8 {[%emt 0:00:21]} 20. Rc1 {[%emt 0:00:56]} Bb7 {[%emt 0:02:22]} 21. Nge2 {[%emt 0:00:24]} a5 {[%emt 0:02:30]} 22. g4 {[%emt 0:04:38]} a4 {[%emt 0:01:47]} 23. Nc2 {[%emt 0:15:47]} b3 {[%emt 0:01:24]} 24. Qxb6 {[%emt 0:21:49]} bxc2+ {[%emt 0:00:13]} 25. Rxc2 {[%emt 0:00:02]} Nxb6 {[%emt 0:00:16]} 26. Rc7 {[%emt 0:00:02]} Ba6 {[%emt 0:01:17]} 27. Rxe7+ {[%emt 0:00:27]} Kf8 {[%emt 0:00:11]} 28. Kc2 {[%emt 0:00:09]} g5 {[%emt 0:08:40]} 29. Ra7 {[%emt 0:00:43]} Bxd3+ {[%emt 0:01:05]} 30. Kxd3 {[%emt 0:00:03]} gxh4 {[%emt 0:00:15]} 31. Ra6 {[%emt 0:00:17]} Nd7 {[%emt 0:00:33]} 32. Rxd6 {[%emt 0:01:23]} Ke7 {[%emt 0:01:35]} 33. Rc6 {[%emt 0:02:02]} Rb8 {[%emt 0:01:51]} 34. e5 {[%emt 0:01:13]} Rxb2 {[%emt 0:04:20]} 35. Nd4 {[%emt 0:00:36]} Kd8 {[%emt 0:04:46]} 36. Rc4 {[%emt 0:00:25]} Rxa2 {[%emt 0:01:28]} 37. Nc6+ {[%emt 0:00:11]} Ke8 {[%emt 0:00:31]} 38. Nb4 {[%emt 0:00:25]} Ra3+ {[%emt 0:01:17]} 39. Ke4 {[%emt 0:00:04]} Kd8 {[%emt 0:09:34]} 40. Nc6+ {[%emt 0:00:00]} Kc7 {[%emt 0:00:28]} 41. Nd4+ {[%emt 0:02:13]} Kb6 {[%emt 0:03:53]} 42. Rb4+ {[%emt 0:02:09]} Ka6 {[%emt 0:01:14]} 43. Kd5 {[%emt 0:02:37]} Bf8 {[%emt 0:01:21]} 44. Rb1 {[%emt 0:01:50]} Nb6+ {[%emt 0:00:44]} 45. Ke4 {[%emt 0:00:27]} Rxh3 {[%emt 0:02:58]} 46. Nc6 {[%emt 0:00:08]} Rb3 {[%emt 0:00:42]} 0-1

[Event "EYCC 2017"]
[Site "Mamaia"]
[Date "2017.09.06"]
[Round "2"]
[White "Berdnyk, Mariia"]
[Black "Slaba, Andrea"]
[Result "1-0"]
[ECO "C11"]
[WhiteElo "2055"]
[BlackElo "1840"]
[Annotator "NA"]
[PlyCount "77"]
[EventDate "2017.??.??"]
[EventType "swiss"]
[EventCountry "ROU"]
[SourceTitle "playchess.com"]
[Source "ChessBase"]
[SourceQuality "1"]
[TimeControl "40/5400+30:1800+30"]

1. e4 {[%emt 0:00:00]} e6 {[%emt 0:00:06]} 2. d4 {[%emt 0:00:00]} d5 {[%emt 0:00:05]} 3. Nc3 {[%emt 0:00:00]} Nf6 {[%emt 0:00:13]} 4. Bg5 {[%emt 0:00:00]} dxe4 {[%emt 0:00:19]} 5. Nxe4 {[%emt 0:00:00]} Nbd7 {[%emt 0:00:11]} 6. Nf3 {[%emt 0:00:02]} Be7 {[%emt 0:00:15]} 7. Nxf6+ {[%emt 0:00:10]} Nxf6 {[%emt 0:00:10]} 8. Bd3 {[%emt 0:01:03]} h6 {[%emt 0:01:01]} 9. Bf4 $11 {[%emt 0:00:42]} O-O {[%emt 0:03:14]} 10. Qe2 {[%emt 0:01:48]} b6 {[%emt 0:02:12]} 11. O-O-O {[%emt 0:02:02]} Bb7 {[%emt 0:00:49]} 12. Ne5 {[%emt 0:01:40]} Qd5 {[%emt 0:05:14]} 13. Kb1 {[%emt 0:06:22]} Rac8 {[%emt 0:08:24]} 14. Rhg1 {[%emt 0:04:53]} Nh7 {[%emt 0:06:53]} 15. f3 {[%emt 0:08:57]} Qd8 {[%emt 0:00:44]} 16. g4 {[%emt 0:05:24]} Bg5 {[%emt 0:01:20]} 17. Bg3 {[%emt 0:02:59]} Bh4 {[%emt 0:02:47]} 18. Bxh4 {[%emt 0:07:05]} Qxh4 {[%emt 0:00:07]} 19. f4 {[%emt 0:03:40]} g5 {[%emt 0:10:56]} 20. Nd7 {[%emt 0:08:09]} Rfd8 {[%emt 0:03:41]} 21. Bxh7+ {[%emt 0:00:56]} Kxh7 {[%emt 0:00:07]} 22. Nf6+ {[%emt 0:00:32]} Kg6 {[%emt 0:00:34]} 23. Qe5 {[%emt 0:01:38]} gxf4 {[%emt 0:01:57]} 24. g5 {[%emt 0:00:47]} hxg5 {[%emt 0:01:33]} 25. Rg4 {[%emt 0:01:31]} Rd5 {[%emt 0:04:07]} 26. Qe4+ {[%emt 0:01:10]} Kxf6 {[%emt 0:00:08]} 27. Rxh4 {[%emt 0:00:04]} gxh4 {[%emt 0:00:05]} 28. c4 {[%emt 0:00:13]} Rf5 {[%emt 0:01:52]} 29. Qxb7 {[%emt 0:00:05]} Rg8 {[%emt 0:00:34]} 30. Qf3 {[%emt 0:03:28]} Rgg5 {[%emt 0:04:21]} 31. Rf1 {[%emt 0:03:25]} Rg8 {[%emt 0:02:11]} 32. Qe4 {[%emt 0:02:51]} Rg4 {[%emt 0:00:58]} 33. h3 {[%emt 0:00:19]} Rg3 {[%emt 0:00:16]} 34. Rxf4 {[%emt 0:01:02]} Rxh3 {[%emt 0:00:09]} 35. Rxh4 {[%emt 0:04:15]} Rhf3 {[%emt 0:02:46]} 36. a3 {[%emt 0:00:39]} Rf1+ {[%emt 0:02:36]} 37. Ka2 {[%emt 0:00:02]} Rc1 {[%emt 0:02:19]} 38. Rh6+ {[%emt 0:00:53]} Kg7 {[%emt 0:01:11]} 39. Qh4 {[%emt 0:00:10]} 1-0